fUST/lending_fUST_20250611
["ID","MTS","AMOUNT","RATE_DAILY","PERIOD"]
[365364356,1749619839471,-460.0,0.00021095,4]
[365364357,1749619839480,-460.0,0.00021095,4]
[365364358,1749619839489,-460.0,0.00021095,4]
[365364359,1749619839498,-460.0,0.00021095,4]
[365364360,1749619839507,-460.0,0.00021095,4]
[365364361,1749619839516,-460.0,0.00021095,4]
[365364362,1749619839525,-1199.27,0.00021095,4]
[365364363,1749619839534,-460.0,0.00021095,4]
[365364364,1749619839546,-460.0,0.00021095,4]
[365364365,1749619839556,-460.0,0.00021095,4]
[365364366,1749619839565,-460.0,0.00021095,4]
[365364367,1749619839574,-420.0,0.00021095,4]
[365364368,1749619839583,-460.0,0.00021095,4]
[365364369,1749619839595,-370.0,0.00021095,4]
[365364370,1749619839603,-460.0,0.00021095,4]
[365364371,1749619839613,-420.0,0.00021095,4]
[365364372,1749619839624,-420.0,0.00021095,4]
[365364373,1749619839634,-460.0,0.00021095,4]
[365364374,1749619839644,-3075.16,0.00021095,4]
[365364375,1749619839653,-1117.25,0.00021095,4]
[365364376,1749619839663,-420.0,0.00021095,4]
[365364377,1749619839672,-310.0,0.00021095,4]
[365364378,1749619839681,-530.0,0.00021095,4]
[365364379,1749619839691,-387.46595788,0.00021095,4]
[365364380,1749619839701,-1049.01,0.00021095,4]
[365364381,1749619839710,-460.0,0.00021095,4]
[365364382,1749619839719,-400.0,0.00021095,4]
[365364383,1749619839729,-460.0,0.00021095,4]
[365364384,1749619839738,-460.0,0.00021095,4]
[365364385,1749619839748,-460.0,0.00021095,4]
[365364386,1749619839757,-617.52,0.00021095,4]
[365364387,1749619839767,-460.0,0.00021095,4]
[365364388,1749619839777,-460.0,0.00021095,4]
[365364389,1749619839787,-460.0,0.00021095,4]
[365364390,1749619839797,-460.0,0.00021095,4]
[365364391,1749619839807,-460.0,0.00021095,4]
[365364392,1749619839816,-320.83407971,0.00021095,4]
[365364393,1749619839825,-460.0,0.00021095,4]
[365364394,1749619839834,-460.0,0.00021095,4]
[365364396,1749619839843,-338.65314575,0.00021095,4]
[365364397,1749619839852,-460.0,0.00021095,4]
[365364399,1749619839861,-460.0,0.00021095,4]
[365364402,1749619839870,-549.73,0.00021095,4]
[365364404,1749619839879,-460.0,0.00021095,4]
[365364406,1749619839889,-330.72149073,0.00021095,4]
[365364408,1749619839898,-1109.34,0.00021095,4]
[365364410,1749619839907,-460.0,0.00021095,2]
[365364412,1749619839916,-460.0,0.00021095,4]
[365364414,1749619839925,-460.0,0.00021095,4]
[365364416,1749619839935,-460.0,0.00021095,4]
[365364418,1749619839943,-836.38078461,0.00021095,4]
[365364420,1749619839952,-266.33,0.00021095,4]
[365364422,1749619839961,-950.17,0.00021095,4]
[365364424,1749619839970,-460.0,0.00021095,4]
[365364426,1749619839979,-400.0,0.00021095,4]
[365364428,1749619839988,-410.0,0.00021095,4]
[365364431,1749619840006,-577.78303337,0.00021095,4]
[365364433,1749619840018,-2214.18,0.00021095,4]
[365364434,1749619840028,-234.7704918,0.00021095,4]
[365364435,1749619840038,-1746.51,0.00021095,4]
[365364436,1749619840048,-460.0,0.00021095,4]
[365364437,1749619840057,-460.0,0.00021095,4]
[365364438,1749619840066,-460.0,0.00021095,4]
[365364439,1749619840076,-3038.81,0.00021095,4]
[365364440,1749619840086,-460.0,0.00021095,4]
[365364441,1749619840096,-460.0,0.00021095,4]
[365364442,1749619840106,-460.0,0.00021095,4]
[365364443,1749619840116,-460.0,0.00021095,4]
[365364444,1749619840127,-460.0,0.00021095,4]
[365364445,1749619840136,-520.81,0.00021095,4]
[365364446,1749619840146,-791.75,0.00021095,4]
[365364447,1749619840156,-2796.7,0.00021095,4]
[365364448,1749619840166,-236.57699151,0.00021095,4]
[365364449,1749619840176,-460.0,0.00021095,4]
[365364450,1749619840185,-460.0,0.00021095,4]
[365364451,1749619840195,-460.0,0.00021095,4]
[365364452,1749619840205,-2744.43,0.00021095,4]
[365364453,1749619840215,-460.0,0.00021095,4]
[365364454,1749619840224,-460.0,0.00021095,4]
[365364455,1749619840234,-460.0,0.00021095,4]
[365364457,1749619840244,-460.0,0.00021095,4]
[365364458,1749619840254,-258.5202815,0.00021095,4]
[365364459,1749619840264,-460.0,0.00021095,4]
[365364460,1749619840274,-2798.24,0.00021095,4]
[365364461,1749619840284,-283.29996522,0.00021095,4]
[365364462,1749619840294,-460.0,0.00021095,4]
[365364464,1749619840303,-1141.43,0.00021095,4]
[365364466,1749619840313,-460.0,0.00021095,4]
[365364468,1749619840323,-460.0,0.00021095,4]
[365364469,1749619840332,-460.0,0.00021095,4]
[365364470,1749619840341,-460.0,0.00021095,4]
[365364471,1749619840351,-460.0,0.00021095,4]
[365364472,1749619840360,-460.0,0.00021095,4]
[365364473,1749619840369,-460.0,0.00021095,4]
[365364474,1749619840378,-460.0,0.00021095,4]
[365364475,1749619840387,-460.0,0.00021095,4]
[365364476,1749619840396,-903.96,0.00021095,4]
[365364477,1749619840406,-460.0,0.00021095,4]
[365364478,1749619840415,-460.0,0.00021095,4]
[365364479,1749619840424,-460.0,0.00021095,4]
[365364480,1749619840433,-460.0,0.00021095,4]
[365364481,1749619840442,-460.0,0.00021095,4]
[365364482,1749619840451,-1299.08,0.00021095,4]
[365364483,1749619840460,-460.0,0.00021095,4]
[365364484,1749619840469,-380.0,0.00021095,4]
[365364485,1749619840478,-460.0,0.00021095,4]
[365364486,1749619840487,-460.0,0.00021095,4]
[365364487,1749619840496,-460.0,0.00021095,4]
[365364488,1749619840505,-460.0,0.00021095,4]
[365364489,1749619840515,-460.0,0.00021095,4]
[365364490,1749619840523,-533.65,0.00021095,4]
[365364491,1749619840533,-460.0,0.00021095,4]
[365364493,1749619840548,-460.0,0.00021095,4]
[365364495,1749619840568,-460.0,0.00021095,4]
[365364497,1749619840588,-1504.2,0.00021095,4]
[365364499,1749619840597,-530.83,0.00021348,2]
[365364501,1749619840607,-500.0,0.00021368,2]
[365364503,1749619840616,-196.09,0.00021368,2]
[365364505,1749619840626,-420.0,0.00021369,4]
[365364507,1749619840637,-412.70015518,0.00021369,4]
[365364509,1749619840646,-440.0,0.00021369,4]
[365364511,1749619840655,-350.0,0.00021369,4]
[365364513,1749619840665,-460.0,0.00021369,4]
[365364515,1749619840674,-410.0,0.00021369,4]
[365364516,1749619840683,-460.0,0.00021369,4]
[365364517,1749619840693,-408.20626775,0.00021369,4]
[365364519,1749619840702,-460.0,0.00021369,4]
[365364521,1749619840712,-460.0,0.00021369,4]
[365364523,1749619840722,-460.0,0.00021369,4]
[365364525,1749619840732,-460.0,0.00021369,4]
[365364527,1749619840741,-390.0,0.00021369,4]
[365364529,1749619840751,-460.0,0.00021369,4]
[365364531,1749619840760,-460.0,0.00021369,4]
[365364533,1749619840770,-460.0,0.00021369,4]
[365364535,1749619840779,-460.0,0.00021369,4]
[365364537,1749619840791,-460.0,0.00021369,4]
[365364539,1749619840800,-460.0,0.00021369,4]
[365364541,1749619840809,-497.7260885,0.00021369,4]
[365364543,1749619840818,-460.0,0.00021369,4]
[365364545,1749619840827,-460.0,0.00021369,4]
[365364547,1749619840837,-320.0,0.00021369,4]
[365364549,1749619840846,-460.0,0.00021369,4]
[365364551,1749619840855,-410.0,0.00021369,4]
[365364553,1749619840864,-460.0,0.00021369,4]
[365364555,1749619840873,-460.0,0.00021369,4]
[365364557,1749619840882,-152.4342792,0.00021369,4]
[365364559,1749619840892,-1199.27,0.00021369,4]
[365364561,1749619840901,-390.0,0.00021369,4]
[365364563,1749619840910,-460.0,0.00021369,4]
[365364565,1749619840919,-460.0,0.00021369,4]
[365364567,1749619840929,-420.0,0.00021369,4]
[365364569,1749619840939,-420.0,0.00021369,4]
[365364571,1749619840948,-460.0,0.00021369,4]
[365364573,1749619840958,-400.0,0.00021369,4]
[365364575,1749619840969,-3075.16,0.00021369,4]
[365364577,1749619840979,-1117.25,0.00021369,4]
[365364579,1749619840988,-1049.01,0.00021369,4]
[365364581,1749619840998,-460.0,0.00021369,4]
[365364583,1749619841008,-430.0,0.00021369,4]
[365364585,1749619841017,-617.52,0.00021369,4]
[365364587,1749619841027,-460.0,0.00021369,4]
[365364589,1749619841037,-500.74012256,0.00021369,4]
[365364591,1749619841046,-380.0,0.00021369,4]
[365364593,1749619841056,-460.0,0.00021369,4]
[365364595,1749619841066,-549.73,0.00021369,4]
[365364597,1749619841075,-440.0,0.00021369,4]
[365364599,1749619841084,-1109.34,0.00021369,4]
[365364601,1749619841094,-460.0,0.00021369,2]
[365364603,1749619841104,-460.0,0.00021369,4]
[365364605,1749619841113,-950.17,0.00021369,4]
[365364607,1749619841122,-460.0,0.00021369,4]
[365364609,1749619841131,-2214.18,0.00021369,4]
[365364611,1749619841140,-1746.51,0.00021369,4]
[365364613,1749619841150,-460.0,0.00021369,4]
[365364616,1749619841159,-370.0,0.00021369,4]
[365364618,1749619841168,-360.0,0.00021369,4]
[365364620,1749619841178,-3038.81,0.00021369,4]
[365364622,1749619841187,-460.0,0.00021369,4]
[365364624,1749619841197,-460.0,0.00021369,4]
[365364626,1749619841206,-460.0,0.00021369,4]
[365364628,1749619841215,-460.0,0.00021369,4]
[365364629,1749619841224,-460.0,0.00021369,4]
[365364632,1749619841233,-520.81,0.00021369,4]
[365364633,1749619841243,-791.75,0.00021369,4]
[365364635,1749619841252,-2796.7,0.00021369,4]
[365364637,1749619841261,-460.0,0.00021369,4]
[365364639,1749619841270,-2744.43,0.00021369,4]
[365364641,1749619841279,-460.0,0.00021369,4]
[365364643,1749619841289,-460.0,0.00021369,4]
[365364645,1749619841298,-460.0,0.00021369,4]
[365364647,1749619841307,-2798.24,0.00021369,4]
[365364649,1749619841317,-159.03950663,0.00021369,4]
[365364651,1749619841326,-1141.43,0.00021369,4]
[365364654,1749619841335,-460.0,0.00021369,4]
[365364656,1749619841344,-460.0,0.00021369,4]
[365364657,1749619841353,-460.0,0.00021369,4]
[365364659,1749619841364,-210.0,0.00021369,4]
[365364661,1749619841373,-460.0,0.00021369,4]
[365364663,1749619841382,-460.0,0.00021369,4]
[365364665,1749619841391,-903.96,0.00021369,4]
[365364667,1749619841400,-303.870631,0.00021369,4]
[365364669,1749619841409,-460.0,0.00021369,4]
[365364672,1749619841418,-1299.08,0.00021369,4]
[365364674,1749619841427,-390.0,0.00021369,4]
[365364676,1749619841435,-330.45499987,0.00021369,4]
[365364678,1749619841444,-460.0,0.00021369,4]
[365364679,1749619841453,-533.65,0.00021369,4]
[365364681,1749619841462,-460.0,0.00021369,4]
[365364683,1749619841471,-379.44324504,0.00021369,4]
[365364685,1749619841480,-460.0,0.00021369,4]
[365364687,1749619841489,-1133.57648132,0.00021543,2]
[365364689,1749619841499,-350.0,0.00021643,4]
[365364691,1749619841509,-437.18884101,0.00021643,4]
[365364693,1749619841518,-195.38387881,0.00021643,4]
[365364696,1749619841528,-454.62057702,0.00021643,4]
[365364697,1749619841537,-507.75874635,0.00021643,4]
[365364700,1749619841547,-460.0,0.00021643,4]
[365364702,1749619841558,-360.0,0.00021643,4]
[365364704,1749619841567,-274.78,0.00021643,4]
[365364705,1749619841576,-332.71695512,0.00021643,4]
[365364707,1749619841586,-460.0,0.00021643,4]
[365364709,1749619841596,-460.0,0.00021643,4]
[365364712,1749619841606,-460.0,0.00021643,4]
[365364714,1749619841615,-460.0,0.00021643,4]
[365364716,1749619841627,-460.0,0.00021643,4]
[365364718,1749619841637,-460.0,0.00021643,4]
[365364719,1749619841644,-368.93454107,0.00021643,4]
[365364721,1749619841653,-460.0,0.00021643,4]
[365364723,1749619841662,-1199.27,0.00021643,4]
[365364725,1749619841671,-460.0,0.00021643,4]
[365364727,1749619841681,-460.0,0.00021643,4]
[365364729,1749619841690,-460.0,0.00021643,4]
[365364731,1749619841700,-3075.16,0.00021643,4]
[365364733,1749619841708,-1117.25,0.00021643,4]
[365364735,1749619841717,-1049.01,0.00021643,4]
[365364737,1749619841727,-460.0,0.00021643,4]
[365364739,1749619841736,-617.52,0.00021643,4]
[365364741,1749619841746,-355.7589457,0.00021643,4]
[365364743,1749619841755,-460.0,0.00021643,4]
[365364745,1749619841764,-549.73,0.00021643,4]
[365364747,1749619841773,-1109.34,0.00021643,4]
[365364749,1749619841783,-460.0,0.00021643,2]
[365364752,1749619841793,-950.17,0.00021643,4]
[365364766,1749619841915,-2214.18,0.00021643,4]
[365364768,1749619841925,-1746.51,0.00021643,4]
[365364770,1749619841934,-460.0,0.00021643,4]
[365364772,1749619841944,-3038.81,0.00021643,4]
[365364774,1749619841953,-460.0,0.00021643,4]
[365364776,1749619841963,-460.0,0.00021643,4]
[365364778,1749619841972,-340.0,0.00021643,4]
[365364780,1749619841981,-460.0,0.00021643,4]
[365364782,1749619841990,-460.0,0.00021643,4]
[365364784,1749619842000,-520.81,0.00021643,4]
[365364786,1749619842009,-791.75,0.00021643,4]
[365364788,1749619842019,-2796.7,0.00021643,4]
[365364790,1749619842029,-460.0,0.00021643,4]
[365364792,1749619842039,-2744.43,0.00021643,4]
[365364794,1749619842049,-317.18444846,0.00021643,4]
[365364796,1749619842058,-460.0,0.00021643,4]
[365364798,1749619842067,-2798.24,0.00021643,4]
[365364800,1749619842077,-1141.43,0.00021643,4]
[365364802,1749619842087,-400.0,0.00021643,4]
[365364804,1749619842096,-460.0,0.00021643,4]
[365364806,1749619842105,-453.44590857,0.00021643,4]
[365364808,1749619842114,-460.0,0.00021643,4]
[365364810,1749619842124,-508.25,0.00021643,4]
[365364812,1749619842133,-903.96,0.00021643,4]
[365364814,1749619842143,-460.0,0.00021643,4]
[365364816,1749619842152,-1299.08,0.00021643,4]
[365364818,1749619842162,-460.0,0.00021643,4]
[365364820,1749619842171,-533.65,0.00021643,4]
[365364822,1749619842181,-460.0,0.00021643,4]
[365364824,1749619842190,-460.0,0.00021643,4]
[365364826,1749619842200,-1281.5,0.000217,2]
[365364828,1749619842209,-420.0,0.00021794,2]
[365364830,1749619842219,-420.0,0.00021794,2]
[365364832,1749619842228,-500.0,0.00021816,2]
[365364834,1749619842238,-200.0,0.00021816,2]
[365364836,1749619842247,-500.0,0.00021816,2]
[365364838,1749619842257,-400.95,0.00021816,2]
[365364840,1749619842266,-500.0,0.00021816,2]
[365364842,1749619842276,-500.0,0.00021816,2]
[365364844,1749619842285,-382.05847207,0.00021816,2]
[365364846,1749619842295,-290.7326999,0.00021816,2]
[365364848,1749619842305,-16239.38042583,0.00021817,2]
[365364850,1749619842315,-500.0,0.00021917,2]
[365364852,1749619842325,-460.0,0.00021917,4]
[365364854,1749619842334,-279.63334964,0.00021917,4]
[365364856,1749619842343,-276.00236887,0.00021917,4]
[365364858,1749619842352,-460.0,0.00021917,4]
[365364860,1749619842362,-460.0,0.00021917,4]
[365364862,1749619842371,-460.0,0.00021917,4]
[365364864,1749619842381,-460.0,0.00021917,4]
[365364866,1749619842390,-460.0,0.00021917,4]
[365364868,1749619842400,-1199.27,0.00021917,4]
[365364870,1749619842410,-460.0,0.00021917,4]
[365364872,1749619842419,-460.0,0.00021917,4]
[365364874,1749619842428,-460.0,0.00021917,4]
[365364876,1749619842438,-3075.16,0.00021917,4]
[365364878,1749619842447,-1117.25,0.00021917,4]
[365364880,1749619842457,-1049.01,0.00021917,4]
[365364882,1749619842467,-460.0,0.00021917,4]
[365364884,1749619842477,-617.52,0.00021917,4]
[365364886,1749619842486,-366.78305919,0.00021917,4]
[365364888,1749619842495,-549.73,0.00021917,4]
[365364890,1749619842504,-1109.34,0.00021917,4]
[365364892,1749619842514,-460.0,0.00021917,2]
[365364895,1749619842525,-950.17,0.00021917,4]
[365364896,1749619842535,-2214.18,0.00021917,4]
[365364899,1749619842546,-1746.51,0.00021917,4]
[365364901,1749619842558,-340.0,0.00021917,4]
[365364903,1749619842567,-3038.81,0.00021917,4]
[365364905,1749619842577,-460.0,0.00021917,4]
[365364907,1749619842587,-460.0,0.00021917,4]
[365364909,1749619842596,-460.0,0.00021917,4]
[365364911,1749619842605,-460.0,0.00021917,4]
[365364913,1749619842615,-520.81,0.00021917,4]
[365364915,1749619842624,-791.75,0.00021917,4]
[365364917,1749619842634,-2796.7,0.00021917,4]
[365364919,1749619842643,-460.0,0.00021917,4]
[365364921,1749619842652,-2744.43,0.00021917,4]
[365364923,1749619842662,-460.0,0.00021917,4]
[365364925,1749619842671,-2798.24,0.00021917,4]
[365364927,1749619842680,-1141.43,0.00021917,4]
[365364929,1749619842690,-460.0,0.00021917,4]
[365364931,1749619842699,-460.0,0.00021917,4]
[365364933,1749619842708,-903.96,0.00021917,4]
[365364935,1749619842717,-460.0,0.00021917,4]
[365364937,1749619842726,-1299.08,0.00021917,4]
[365364938,1749619842735,-460.0,0.00021917,4]
[365364941,1749619842745,-533.65,0.00021917,4]
[365364943,1749619842754,-460.0,0.00021917,4]
[365364945,1749619842763,-460.0,0.00021917,4]
[365364947,1749619842773,-40661.25,0.00022,7]
[365364949,1749619842782,-197.0,0.00022,2]
[365364950,1749619842791,-160.0,0.00022,7]
[365364952,1749619842801,-844.64040732,0.00022,7]
[365364954,1749619842810,-213.16534259,0.00022,7]
[365364957,1749619842820,-500.0,0.0002216,2]
[365364958,1749619842830,-1133.57648132,0.00022172,2]
[365364960,1749619842840,-200.0,0.00022191,4]
[365364963,1749619842850,-460.0,0.00022191,4]
[365364964,1749619842859,-460.0,0.00022191,4]
[365364966,1749619842869,-460.0,0.00022191,4]
[365364968,1749619842878,-208.2703138,0.00022191,4]
[365364970,1749619842887,-460.0,0.00022191,4]
[365364972,1749619842897,-1199.27,0.00022191,4]
[365364975,1749619842907,-460.0,0.00022191,4]
[365364977,1749619842916,-460.0,0.00022191,4]
[365364979,1749619842925,-460.0,0.00022191,4]
[365364981,1749619842935,-3075.16,0.00022191,4]
[365364982,1749619842944,-1117.25,0.00022191,4]
[365364984,1749619842954,-1049.01,0.00022191,4]
[365364987,1749619842963,-460.0,0.00022191,4]
[365364989,1749619842973,-617.52,0.00022191,4]
[365364991,1749619842983,-549.73,0.00022191,4]
[365364993,1749619842993,-1109.34,0.00022191,4]
[365364996,1749619843003,-460.0,0.00022191,2]
[365364997,1749619843012,-950.17,0.00022191,4]
[365364999,1749619843022,-2214.18,0.00022191,4]
[365365001,1749619843032,-1746.51,0.00022191,4]
[365365003,1749619843044,-3038.81,0.00022191,4]
[365365005,1749619843054,-332.25043676,0.00022191,4]
[365365007,1749619843063,-403.26763229,0.00022191,4]
[365365009,1749619843072,-350.82600538,0.00022191,4]
[365365011,1749619843082,-460.0,0.00022191,4]
[365365051,1749619843475,-520.81,0.00022191,4]
[365365053,1749619843484,-791.75,0.00022191,4]
[365365056,1749619843494,-2796.7,0.00022191,4]
[365365058,1749619843504,-460.0,0.00022191,4]
[365365060,1749619843513,-2744.43,0.00022191,4]
[365365062,1749619843523,-460.0,0.00022191,4]
[365365064,1749619843533,-2798.24,0.00022191,4]
[365365066,1749619843543,-1141.43,0.00022191,4]
[365365068,1749619843556,-460.0,0.00022191,4]
[365365071,1749619843571,-460.0,0.00022191,4]
[365365073,1749619843580,-903.96,0.00022191,4]
[365365075,1749619843590,-460.0,0.00022191,4]
[365365077,1749619843600,-1299.08,0.00022191,4]
[365365079,1749619843609,-460.0,0.00022191,4]
[365365081,1749619843618,-533.65,0.00022191,4]
[365365083,1749619843629,-460.0,0.00022191,4]
[365365085,1749619843639,-460.0,0.00022191,4]
[365365087,1749619843648,-173.61221487,0.000222,69]
[365365089,1749619843658,-11860.25191276,0.00022242,2]
[365365091,1749619843667,-193.24538029,0.00022242,2]
[365365093,1749619843676,-160.0,0.00022242,2]
[365365095,1749619843688,-796.25,0.00022318,2]
[365365097,1749619843698,-229.71724145,0.00022446,2]
[365365099,1749619843707,-160.0,0.00022446,2]
[365365101,1749619843716,-835.03886221,0.00022446,2]
[365365103,1749619843726,-213.16534259,0.00022446,2]
[365365105,1749619843735,-424.19973472,0.00022446,2]
[365365107,1749619843744,-160.0,0.00022446,2]
[365365109,1749619843753,-400.0,0.00022465,4]
[365365111,1749619843762,-190.03,0.00022465,4]
[365365113,1749619843773,-460.0,0.00022465,4]
[365365115,1749619843783,-460.0,0.00022465,4]
[365365117,1749619843793,-460.0,0.00022465,4]
[365365119,1749619843803,-326.82,0.00022465,4]
[365365121,1749619843812,-1199.27,0.00022465,4]
[365365123,1749619843822,-460.0,0.00022465,4]
[365365125,1749619843831,-460.0,0.00022465,4]
[365365127,1749619843840,-460.0,0.00022465,4]
[365365129,1749619843850,-3075.16,0.00022465,4]
[365365131,1749619843859,-1117.25,0.00022465,4]
[365365133,1749619843868,-1049.01,0.00022465,4]
[365365135,1749619843877,-460.0,0.00022465,4]
[365365137,1749619843886,-617.52,0.00022465,4]
[365365139,1749619843896,-549.73,0.00022465,4]
[365365141,1749619843905,-1109.34,0.00022465,4]
[365365143,1749619843914,-353.31,0.00022465,2]
[365365145,1749619843923,-950.17,0.00022465,4]
[365365147,1749619843933,-2214.18,0.00022465,4]
[365365149,1749619843942,-1746.51,0.00022465,4]
[365365151,1749619843951,-3038.81,0.00022465,4]
[365365153,1749619843961,-460.0,0.00022465,4]
[365365154,1749619843971,-520.81,0.00022465,4]
[365365156,1749619843979,-791.75,0.00022465,4]
[365365158,1749619843988,-2796.7,0.00022465,4]
[365365160,1749619843998,-460.0,0.00022465,4]
[365365162,1749619844007,-2744.43,0.00022465,4]
[365365164,1749619844017,-460.0,0.00022465,4]
[365365166,1749619844026,-2798.24,0.00022465,4]
[365365168,1749619844035,-1141.43,0.00022465,4]
[365365170,1749619844046,-447.24405743,0.00022465,4]
[365365173,1749619844057,-460.0,0.00022465,4]
[365365175,1749619844066,-903.96,0.00022465,4]
[365365176,1749619844076,-460.0,0.00022465,4]
[365365179,1749619844085,-1299.08,0.00022465,4]
[365365180,1749619844095,-460.0,0.00022465,4]
[365365182,1749619844104,-533.65,0.00022465,4]
[365365184,1749619844114,-460.0,0.00022465,4]
[365365186,1749619844123,-460.0,0.00022465,4]
[365365188,1749619844132,-500.0,0.00022722,2]
[365365190,1749619844142,-502.39152022,0.00022722,2]
[365365192,1749619844151,-600.0,0.00022722,2]
[365365194,1749619844161,-5087.0,0.00022723,2]
[365365196,1749619844170,-196.09,0.00022738,2]
[365365198,1749619844179,-460.0,0.00022739,4]
[365365200,1749619844189,-460.0,0.00022739,4]
[365365202,1749619844198,-460.0,0.00022739,4]
[365365204,1749619844207,-1199.27,0.00022739,4]
[365365206,1749619844217,-460.0,0.00022739,4]
[365365208,1749619844226,-460.0,0.00022739,4]
[365365210,1749619844236,-460.0,0.00022739,4]
[365365212,1749619844246,-3075.16,0.00022739,4]
[365365214,1749619844255,-1117.25,0.00022739,4]
[365365216,1749619844265,-1049.01,0.00022739,4]
[365365218,1749619844274,-485.29,0.00022739,4]
[365365220,1749619844283,-617.52,0.00022739,4]
[365365222,1749619844293,-549.73,0.00022739,4]
[365365224,1749619844302,-1109.34,0.00022739,4]
[365365226,1749619844312,-950.17,0.00022739,4]
[365365228,1749619844321,-2214.18,0.00022739,4]
[365365230,1749619844330,-1746.51,0.00022739,4]
[365365232,1749619844339,-3038.81,0.00022739,4]
[365365234,1749619844350,-460.0,0.00022739,4]
[365365236,1749619844360,-520.81,0.00022739,4]
[365365238,1749619844370,-791.75,0.00022739,4]
[365365240,1749619844380,-2796.7,0.00022739,4]
[365365242,1749619844391,-280.61050951,0.00022739,4]
[365365244,1749619844400,-2744.43,0.00022739,4]
[365365246,1749619844409,-460.0,0.00022739,4]
[365365248,1749619844419,-2798.24,0.00022739,4]
[365365250,1749619844428,-1141.43,0.00022739,4]
[365365252,1749619844437,-460.0,0.00022739,4]
[365365254,1749619844446,-903.96,0.00022739,4]
[365365256,1749619844455,-460.0,0.00022739,4]
[365365258,1749619844464,-1299.08,0.00022739,4]
[365365260,1749619844474,-460.0,0.00022739,4]
[365365262,1749619844483,-533.65,0.00022739,4]
[365365263,1749619844492,-460.0,0.00022739,4]
[365365265,1749619844501,-460.0,0.00022739,4]
[365365267,1749619844510,-1133.57648132,0.000228,2]
[365365269,1749619844522,-207.4,0.00022859,2]
[365365272,1749619844531,-5000.0,0.00022859,2]
[365365273,1749619844541,-151.0,0.00022859,2]
[365365275,1749619844555,-151.0,0.00022859,2]
[365365277,1749619844564,-151.0,0.00022859,2]
[365365279,1749619844574,-151.0,0.00022859,2]
[365365282,1749619844584,-151.0,0.00022859,2]
[365365283,1749619844593,-151.0,0.00022859,2]
[365365284,1749619844602,-151.0,0.00022859,2]
[365365285,1749619844611,-151.0,0.00022859,2]
[365365286,1749619844621,-151.0,0.00022859,2]
[365365287,1749619844631,-151.0,0.00022859,2]
[365365288,1749619844640,-151.0,0.00022859,2]
[365365289,1749619844650,-151.0,0.00022859,2]
[365365290,1749619844659,-151.0,0.00022859,2]
[365365291,1749619844668,-170.69580346,0.00022859,2]
[365365292,1749619844677,-377.85658625,0.00022872,2]
[365365293,1749619844685,-680.0,0.00022945,2]
[365365294,1749619844695,-680.0,0.00022964,2]
[365365295,1749619844705,-567.2069987,0.00022973,2]
[365365296,1749619844715,-501.9396443,0.00022973,2]
[365365297,1749619844724,-506.16225976,0.00022973,2]
[365365298,1749619844734,-491.60046574,0.00022973,2]
[365365300,1749619844842,-500.53643659,0.00022973,2]
[365365302,1749619844852,-500.0,0.00022973,2]